lending/lending_fUSD_20260102
["ID","MTS","AMOUNT","RATE_DAILY","PERIOD"]
[400324516,1767373846891,-501.0,0.00040224,21]
[400324518,1767373846901,-708.6,0.00040244,30]
[400324520,1767373846910,-397.52914815,0.00040244,2]
[400324522,1767373846922,-150.0,0.00040247,7]
[400324524,1767373846931,-150.0,0.00040297,7]
[400324526,1767373846940,-150.0,0.00040365,7]
[400324528,1767373846949,-295.19,0.00040375,120]
[400324530,1767373846959,-695.46,0.00040409,30]
[400324532,1767373846967,-699.41,0.00040454,30]
[400324534,1767373846977,-153.94,0.00040459,2]
[400324536,1767373846986,-150.0,0.0004046,7]
[400324538,1767373846996,-500.0,0.00040473,120]
[400324540,1767373847005,-150.0,0.00040473,120]
[400324542,1767373847015,-500.0,0.00040483,120]
[400324544,1767373847026,-500.0,0.00040483,120]
[400324546,1767373847035,-500.0,0.00040483,120]
[400324548,1767373847044,-500.0,0.00040483,120]
[400324549,1767373847054,-500.0,0.00040483,120]
[400324550,1767373847063,-150.0,0.00040603,7]
[400324551,1767373847073,-150.0,0.00040603,7]
[400324552,1767373847082,-150.0,0.00040603,7]
[400324553,1767373847091,-150.0,0.00040603,7]
[400324554,1767373847100,-150.0,0.00040603,7]
[400324555,1767373847109,-150.0,0.00040603,7]
[400324556,1767373847118,-150.0,0.00040603,7]
[400324557,1767373847127,-151.0,0.000407,120]
[400324558,1767373847136,-152.0,0.000407,120]
[400324559,1767373847145,-689.93,0.00040723,30]
[400324560,1767373847155,-150.0,0.00040745,7]
[400324561,1767373847164,-150.0,0.0004084,7]
[400324562,1767373847177,-150.0,0.00040908,7]
[400324563,1767373847186,-480.21232696,0.00040955,16]
[400324564,1767373847195,-150.0,0.00040959,7]
[400324565,1767373847205,-501.0,0.00040961,22]
[400324566,1767373847214,-150.0,0.0004103,7]
[400324567,1767373847223,-150.0,0.0004103,7]
[400324568,1767373847234,-2953.5696621,0.00041064,15]
[400324569,1767373847243,-150.0,0.00041078,7]
[400324570,1767373847254,-600.0,0.00041096,120]
[400324571,1767373847264,-333.75099134,0.00041096,2]
[400324572,1767373847274,-350.0,0.00041096,31]
[400324573,1767373847284,-151.0,0.000413,120]
[400324574,1767373847293,-150.0,0.00041315,30]
[400324575,1767373847305,-150.0,0.00041315,30]
[400324576,1767373847316,-150.0,0.00041315,30]
[400324577,1767373847326,-152.0,0.000414,120]
[400324578,1767373847340,-150.0,0.00041458,30]
[400324579,1767373847351,-200.0,0.0004151,120]
[400324580,1767373847361,-150.0,0.00041519,30]
[400324581,1767373847371,-150.0,0.00041553,30]
[400324582,1767373847382,-1600.0,0.0004158,60]
[400324583,1767373847393,-800.0,0.0004158,60]
[400324584,1767373847404,-500.0,0.0004158,60]
[400324585,1767373847414,-382.83744412,0.00041591,7]
[400324586,1767373847425,-150.0,0.000416,30]
[400324587,1767373847435,-600.0,0.00041644,120]
[400324588,1767373847444,-150.0,0.00041671,30]
[400324589,1767373847453,-150.0,0.00041671,30]
[400324590,1767373847463,-150.0,0.00041671,30]
[400324591,1767373847472,-501.0,0.00041698,23]
[400324592,1767373847481,-850.0814,0.00041778,120]
[400324593,1767373847491,-480.21232696,0.00041785,17]
[400324594,1767373847500,-150.0,0.0004179,30]
[400324595,1767373847510,-500.0,0.00041867,120]
[400324596,1767373847519,-500.0,0.00041867,120]
[400324597,1767373847529,-500.0,0.00041867,120]
[400324598,1767373847538,-500.0,0.00041867,120]
[400324599,1767373847547,-500.0,0.00041867,120]
[400324600,1767373847557,-500.0,0.00041867,2]
[400324601,1767373847568,-500.0,0.00041867,30]
[400324602,1767373847578,-191.55276759,0.00041868,7]
[400324603,1767373847587,-165.97,0.00041871,14]
[400324604,1767373847596,-300.0,0.00041877,30]
[400324605,1767373847605,-500.0,0.00041877,120]
[400324606,1767373847614,-500.0,0.00041877,120]
[400324607,1767373847624,-500.0,0.00041877,120]
[400324608,1767373847634,-500.0,0.00041877,120]
[400324609,1767373847643,-500.0,0.00041877,120]
[400324610,1767373847652,-500.0,0.00041877,120]
[400324611,1767373847662,-500.0,0.00041877,120]
[400324612,1767373847674,-500.0,0.00041877,120]
[400324613,1767373847684,-500.0,0.00041877,120]
[400324614,1767373847694,-500.0,0.00041877,120]
[400324615,1767373847704,-500.0,0.00041877,120]
[400324616,1767373847714,-500.0,0.00041877,120]
[400324617,1767373847724,-500.0,0.00041877,120]
[400324618,1767373847734,-500.0,0.00041877,120]
[400324619,1767373847744,-637.66511868,0.00041877,120]
[400324620,1767373847754,-500.0,0.00041877,120]
[400324621,1767373847763,-504.56873782,0.00041877,120]
[400324622,1767373847772,-500.0,0.00041877,30]
[400324623,1767373847783,-500.0,0.00041877,30]
[400324624,1767373847793,-500.0,0.00041877,30]
[400324625,1767373847802,-500.0,0.00041877,30]
[400324626,1767373847812,-999.0,0.00041877,120]
[400324627,1767373847822,-200.309783,0.00041877,30]
[400324628,1767373847832,-151.0,0.00041877,120]
[400324629,1767373847843,-151.0,0.00041877,120]
[400324630,1767373847853,-151.0,0.00041877,120]
[400324631,1767373847864,-300.0,0.00041877,30]
[400324632,1767373847874,-300.0,0.00041877,30]
[400324633,1767373847884,-156.753032,0.00041878,120]
[400324634,1767373847893,-151.0,0.00041878,120]
[400324635,1767373847902,-166.852756,0.00041878,120]
[400324636,1767373847912,-222.318321,0.00041878,7]
[400324637,1767373847926,-151.0,0.00041878,120]
[400324638,1767373847935,-151.0,0.00041878,120]
[400324639,1767373847944,-151.0,0.00041878,120]
[400324640,1767373847953,-12000.0,0.00041878,120]
[400324641,1767373847963,-12000.0,0.00041878,120]
[400324642,1767373847972,-12000.0,0.00041878,120]
[400324643,1767373847981,-12000.0,0.00041878,120]
[400324644,1767373847991,-12000.0,0.00041878,120]
[400324645,1767373848000,-12000.0,0.00041878,120]
[400324646,1767373848010,-12000.0,0.00041878,120]
[400324647,1767373848019,-12000.0,0.00041878,120]
[400324648,1767373848029,-12000.0,0.00041878,120]
[400324649,1767373848039,-151.0,0.00041878,120]
[400324650,1767373848049,-151.0,0.00041878,120]
[400324651,1767373848058,-151.0,0.00041878,120]
[400324652,1767373848066,-571071.66458398,0.00041878,2]
[400324653,1767373848083,-118728.26866128,0.00041878,2]
[400324654,1767373848093,-961.63072982,0.00041878,2]
[400324655,1767373848105,-3442.45547167,0.00041878,2]
[400324656,1767373848116,-486.2956417,0.00041878,2]
[400324657,1767373848127,-305309.68491155,0.00041878,2]
[400324658,1767373848137,-150.0,0.00041885,30]
[400324659,1767373848147,-150.0,0.00041885,30]
[400324660,1767373848157,-2953.5696621,0.0004194,15]
[400324661,1767373848166,-482.01,0.00041945,30]
[400324662,1767373848180,-660.52,0.00041945,30]
[400324663,1767373848190,-482.01,0.00041945,30]
[400324664,1767373848199,-660.52,0.00041945,30]
[400324665,1767373848208,-660.52,0.00041945,30]
[400324666,1767373848217,-481.47,0.00041945,30]
[400324667,1767373848226,-311.04645277,0.00041945,30]
[400324668,1767373848238,-348.79354723,0.00041945,30]
[400324669,1767373848247,-660.52,0.00041945,30]
[400324670,1767373848257,-660.52,0.00041945,30]
[400324671,1767373848266,-165.97,0.00041957,14]
[400324672,1767373848276,-300.0,0.00041977,30]
[400324673,1767373848285,-1000.0,0.00041978,120]
[400324674,1767373848295,-151.0,0.00042,120]
[400324675,1767373848305,-150.0,0.00042027,30]
[400324676,1767373848315,-150.0,0.00042027,30]
[400324677,1767373848327,-165.97,0.00042042,14]
[400324678,1767373848336,-693.94,0.00042058,30]
[400324679,1767373848346,-154.65,0.00042082,30]
[400324680,1767373848355,-152.0,0.000421,120]
[400324681,1767373848365,-300.0,0.00042127,30]
[400324682,1767373848374,-742.27988523,0.00042128,60]
[400324683,1767373848386,-857.72011477,0.00042128,60]
[400324684,1767373848395,-278.57572705,0.00042128,60]
[400324685,1767373848414,-521.42427295,0.00042128,60]
[400324686,1767373848427,-150.0,0.00042129,30]
[400324687,1767373848436,-153.94,0.00042145,2]
[400324688,1767373848446,-150.0,0.0004217,30]
[400324689,1767373848455,-600.0,0.00042192,120]
[400324690,1767373848464,-54.16808837,0.000422,2]
[400324691,1767373848475,-945.83191163,0.000422,2]
[400324692,1767373848484,-150.0,0.00042265,30]
[400324693,1767373848494,-150.0,0.00042312,30]
[400324694,1767373848503,-97.91809087,0.00042384,30]
[400324695,1767373848514,-52.08190913,0.00042384,30]
[400324696,1767373848523,-501.0,0.00042434,23]
[400324697,1767373848532,-150.0,0.00042455,30]
[400324698,1767373848542,-300.0,0.00042479,30]
[400324699,1767373848551,-186.24381303,0.0004248,2]
[400324700,1767373848562,-2058.45215883,0.0004248,2]
[400324701,1767373848571,-150.0,0.00042502,30]
[400324702,1767373848582,-151.80413951,0.00042599,2]
[400324703,1767373848591,-151.0,0.000426,120]
[400324704,1767373848600,-150.0,0.00042605,60]
[400324705,1767373848609,-150.0,0.00042605,60]
[400324706,1767373848618,-150.0,0.00042605,60]
[400324707,1767373848628,-150.0,0.00042605,60]
[400324708,1767373848638,-150.0,0.00042605,60]
[400324709,1767373848647,-150.0,0.00042605,60]
[400324710,1767373848656,-150.0,0.00042605,60]
[400324711,1767373848665,-152.52488602,0.00042605,60]
[400324712,1767373848677,-150.0,0.00042605,60]
[400324713,1767373848686,-260.5640679,0.00042605,60]
[400324714,1767373848696,-32.49137383,0.00042605,60]
[400324715,1767373848707,-117.50862617,0.00042605,60]
[400324716,1767373848716,-150.0,0.00042605,60]
[400324717,1767373848726,-175.8191271,0.00042605,60]
[400324718,1767373848735,-150.0,0.00042605,60]
[400324719,1767373848744,-150.0,0.00042605,60]
[400324720,1767373848753,-150.0,0.00042605,60]
[400324721,1767373848763,-150.0,0.00042605,60]
[400324722,1767373848772,-150.0,0.00042605,60]
[400324723,1767373848781,-150.0,0.00042605,60]
[400324724,1767373848791,-150.0,0.00042605,60]
[400324725,1767373848800,-150.0,0.00042605,2]
[400324726,1767373848810,-150.0,0.00042605,2]
[400324727,1767373848819,-150.0,0.00042605,60]
[400324728,1767373848829,-150.0,0.00042605,60]
[400324729,1767373848838,-166.29168154,0.00042605,60]
[400324730,1767373848848,-150.0,0.00042605,2]
[400324731,1767373848857,-150.0,0.00042605,60]
[400324732,1767373848867,-150.0,0.00042605,60]
[400324733,1767373848876,-150.0,0.00042605,60]
[400324734,1767373848886,-500.0,0.00042605,60]
[400324735,1767373848894,-150.0,0.00042605,60]
[400324736,1767373848903,-215.19147944,0.00042605,60]
[400324737,1767373848912,-300.0,0.00042632,30]
[400324738,1767373848922,-300.0,0.00042637,2]
[400324739,1767373848931,-300.0,0.00042647,30]
[400324740,1767373848941,-150.0,0.00042648,30]
[400324741,1767373848950,-344.10103672,0.00042648,30]
[400324742,1767373848962,-150.0,0.00042648,30]
[400324743,1767373848971,-264.30605008,0.00042648,30]
[400324744,1767373848980,-150.0,0.00042648,30]
[400324745,1767373848989,-2337.06749767,0.00042648,30]
[400324746,1767373848998,-150.0,0.00042648,30]
[400324747,1767373849007,-258.57436107,0.00042648,30]
[400324748,1767373849017,-301.48234093,0.0004266,2]
[400324749,1767373849026,-300.0,0.00042675,30]
[400324750,1767373849036,-1600.0,0.00042676,60]
[400324751,1767373849045,-800.0,0.00042676,60]
[400324752,1767373849054,-500.0,0.00042676,60]
[400324753,1767373849063,-300.0,0.00042699,30]
[400324754,1767373849072,-2000.0,0.000427,2]
[400324755,1767373849082,-500.0,0.00042712,120]
[400324756,1767373849092,-300.0,0.0004272,2]
[400324757,1767373849101,-600.01,0.0004274,120]
[400324758,1767373849110,-150.0,0.0004274,30]
[400324759,1767373849119,-150.0,0.0004274,30]
[400324760,1767373849128,-150.0,0.0004274,30]
[400324761,1767373849138,-150.0,0.0004274,30]
[400324762,1767373849148,-150.0,0.0004274,30]
[400324763,1767373849157,-150.0,0.0004274,30]
[400324764,1767373849313,-156.02097028,0.0004274,30]
[400324765,1767373849325,-150.0,0.0004274,30]
[400324766,1767373849337,-150.0,0.0004274,30]
[400324767,1767373849347,-150.0,0.0004274,30]
[400324768,1767373849356,-232.88173819,0.00042742,60]
[400324769,1767373849365,-154.54206526,0.00042742,60]
[400324770,1767373849375,-150.0,0.00042742,60]
[400324771,1767373849386,-150.0,0.00042742,60]
[400324772,1767373849395,-150.0,0.00042742,60]
[400324773,1767373849405,-150.0,0.00042742,60]
[400324774,1767373849414,-219.0,0.00042742,60]
[400324775,1767373849424,-200.0,0.00042742,60]
[400324776,1767373849434,-150.0,0.00042742,60]
[400324777,1767373849444,-150.0,0.00042742,60]
[400324778,1767373849453,-150.0,0.00042742,2]
[400324779,1767373849463,-247.13609629,0.00042742,60]
[400324780,1767373849472,-150.0,0.00042742,60]
[400324781,1767373849482,-517.0,0.00042742,60]
[400324782,1767373849492,-300.0,0.00042762,2]
[400324783,1767373849501,-152.0,0.000428,120]
[400324784,1767373849511,-500.0,0.00042806,120]
[400324785,1767373849522,-491.17772681,0.00042806,120]
[400324786,1767373849533,-500.0,0.00042806,30]
[400324787,1767373849543,-380.28936169,0.00042807,2]
[400324788,1767373849553,-181.6575,0.00042807,120]
[400324789,1767373849562,-1000.0,0.00042807,2]
[400324790,1767373849571,-10000.0,0.00042807,2]
[400324791,1767373849581,-582.35063522,0.00042807,9]
[400324792,1767373849590,-187.97768291,0.00042815,120]
[400324793,1767373849599,-2953.5696621,0.00042815,15]
[400324794,1767373849608,-14855.32546811,0.00042815,2]
[400324795,1767373849617,-234.92451439,0.00042816,2]
[400324796,1767373849626,-189.09279761,0.00042816,8]
[400324797,1767373849637,-711.67521902,0.00042816,2]
[400324798,1767373849649,-7140.77186119,0.00042816,2]
[400324799,1767373849659,-300.0,0.00042842,2]
[400324800,1767373849670,-300.0,0.00042844,2]
[400324801,1767373849679,-300.0,0.00042868,2]
[400324802,1767373849688,-150.0,0.00042877,2]
[400324803,1767373849699,-1507.22420034,0.00042877,2]
[400324804,1767373849708,-150.0,0.00042877,2]
[400324805,1767373849717,-9798.26999068,0.00042877,2]
[400324806,1767373849727,-150.0,0.00042877,2]
[400324807,1767373849737,-648.34317917,0.00042877,2]
[400324808,1767373849747,-158.71398149,0.00042879,60]
[400324809,1767373849756,-200.0,0.00042879,60]
[400324810,1767373849765,-200.0,0.00042879,60]
[400324811,1767373849775,-150.0,0.00042879,60]
[400324812,1767373849784,-200.0,0.00042879,60]
[400324813,1767373849794,-200.0,0.00042879,2]
[400324814,1767373849803,-200.0,0.00042879,60]
[400324815,1767373849813,-300.0,0.00042884,2]
[400324816,1767373849823,-989.21,0.000429,120]
[400324817,1767373849832,-150.0,0.000429,27]
[400324818,1767373849841,-253.0,0.000429,41]
[400324819,1767373849851,-300.0,0.00042903,2]
[400324820,1767373849861,-300.0,0.00042904,2]
[400324821,1767373849871,-660.52,0.00042904,30]
[400324822,1767373849881,-660.52,0.00042904,30]
[400324823,1767373849891,-660.52,0.00042904,30]
[400324824,1767373849901,-1319.85,0.00042904,30]
[400324825,1767373849910,-500.0,0.00042906,120]
[400324826,1767373849920,-500.0,0.00042906,120]
[400324827,1767373849930,-500.0,0.00042906,120]
[400324828,1767373849939,-500.0,0.00042906,120]
[400324829,1767373849949,-500.0,0.00042906,120]
[400324830,1767373849958,-500.0,0.00042906,120]
[400324831,1767373849967,-500.0,0.00042906,120]
[400324832,1767373849976,-500.0,0.00042906,120]
[400324833,1767373849986,-451.40062189,0.00042906,120]
[400324834,1767373849995,-473.86699428,0.00042906,30]
[400324835,1767373850004,-142043.8011371,0.00042907,2]
[400324836,1767373850014,-200.0,0.00042907,7]
[400324837,1767373850023,-1389.463625,0.00042907,2]
[400324838,1767373850033,-151.0,0.00042907,120]
[400324839,1767373850042,-151.0,0.00042907,120]
[400324840,1767373850052,-151.0,0.00042907,120]
[400324841,1767373850062,-151.0,0.00042907,120]
[400324842,1767373850072,-151.0,0.00042907,120]
[400324843,1767373850082,-151.0,0.00042907,120]
[400324844,1767373850092,-271.0,0.00042907,120]
[400324845,1767373850103,-228.403998,0.00042912,120]
[400324846,1767373850112,-151.0,0.00042915,120]
[400324847,1767373850122,-151.0,0.00042915,120]
[400324848,1767373850131,-151.0,0.00042915,120]
[400324849,1767373850141,-151.0,0.00042915,120]
[400324850,1767373850150,-151.0,0.00042915,120]
[400324851,1767373850165,-151.0,0.00042915,120]
[400324852,1767373850177,-151.0,0.00042915,120]
[400324853,1767373850186,-236.88766,0.00042915,120]
[400324854,1767373850195,-12000.0,0.00042915,120]
[400324855,1767373850205,-12000.0,0.00042915,120]
[400324856,1767373850215,-12000.0,0.00042915,120]
[400324857,1767373850224,-12000.0,0.00042915,120]
[400324858,1767373850234,-12000.0,0.00042915,120]
[400324859,1767373850243,-12000.0,0.00042915,120]
[400324860,1767373850253,-12000.0,0.00042915,120]
[400324861,1767373850263,-12000.0,0.00042915,120]
[400324862,1767373850272,-8000.0,0.00042915,120]
[400324863,1767373850282,-151.0,0.00042915,120]
[400324864,1767373850291,-151.0,0.00042915,120]
[400324865,1767373850302,-56825.07357049,0.00042915,27]
[400324866,1767373850312,-8318.1768366,0.00042916,2]
[400324867,1767373850322,-149973.28061041,0.00042916,7]
[400324868,1767373850426,-362.62256568,0.00042916,7]
[400324869,1767373850439,-4246.38102493,0.00042916,7]
[400324870,1767373850455,-3172.67951371,0.00042916,7]
[400324871,1767373850467,-1616.66594552,0.00042916,7]
[400324872,1767374406759,209.8661293,0.00016973,2]
[400324874,1767374726129,16965.06386909,0.00016,2]
[400324875,1767374730420,22114.66624448,0.00016,2]
[400324879,1767374780832,398.56,0.00013699,2]
[400324881,1767374815335,5000.00814981,0.000162,5]
[400324884,1767374849486,359.25963619,0.000166,2]
[400324886,1767374870838,5935.11510389,0.00012,2]
[400324892,1767374915660,187.38567012,0.00015807,2]
[400324896,1767375031374,-151.0,0.00019302,2]
[400324897,1767375031384,-502.0,0.000196,2]
[400324898,1767375031393,-151.0,0.00019668,2]
[400324900,1767375031403,-473.81018795,0.0001995,15]
[400324905,1767375031482,-365.75768454,0.0001995,15]
[400324906,1767375031494,-407.0,0.0001995,15]
[400324907,1767375031506,-295.99999997,0.0001995,15]
[400324908,1767375031517,-856.63891136,0.0001995,15]
[400324909,1767375031529,-814.47785732,0.0001995,15]
[400324910,1767375031541,-4701.4174145,0.0001995,15]
[400324911,1767375031552,-7258.50031027,0.0001995,15]
[400324912,1767375031562,-398.56,0.00020187,2]
[400324913,1767375031572,-502.0,0.00020808,3]
[400324914,1767375031581,-502.0,0.00022016,4]
[400324915,1767375031592,-303.88,0.00023224,2]
[400324916,1767375031602,-502.0,0.00023224,5]
[400324917,1767375031612,-502.0,0.00024432,6]
[400324918,1767375031622,-500.0,0.00024999,2]
[400324919,1767375031632,-389.35158157,0.00024999,2]
[400324920,1767375031642,-500.0,0.00024999,2]
[400324921,1767375031652,-500.0,0.00024999,2]
[400324922,1767375031664,-500.0,0.00024999,2]
[400324923,1767375031674,-500.0,0.00024999,2]
[400324924,1767375031685,-500.0,0.00024999,2]
[400324925,1767375031695,-476.91917433,0.00024999,2]
[400324926,1767375031711,-23.08082567,0.00024999,2]
[400324928,1767375031720,-276.91917433,0.00024999,2]
[400324929,1767375031732,-223.08082567,0.00024999,2]
[400324931,1767375031741,-500.0,0.00024999,2]
[400324933,1767375031751,-500.0,0.00024999,2]
[400324934,1767375031760,-500.0,0.00024999,2]
[400324936,1767375031769,-500.0,0.00024999,2]
[400324938,1767375031779,-500.0,0.00024999,2]
[400324939,1767375031788,-500.0,0.00024999,2]
[400324941,1767375031798,-500.0,0.00024999,2]
[400324943,1767375031808,-500.0,0.00024999,2]
[400324944,1767375031819,-500.0,0.00024999,2]
[400324946,1767375031829,-500.0,0.00024999,2]
[400324948,1767375031838,-500.0,0.00024999,2]
[400324949,1767375031848,-500.0,0.00024999,2]
[400324951,1767375031857,-156.65078301,0.00024999,2]
[400324953,1767375031868,-343.34921699,0.00024999,2]
[400324954,1767375031877,-500.0,0.00024999,2]
[400324956,1767375031886,-500.0,0.00024999,2]
[400324958,1767375031896,-500.0,0.00024999,2]
[400324959,1767375031905,-500.0,0.00024999,2]
[400324961,1767375031914,-254.96195499,0.00024999,2]
[400324963,1767375031925,-500.0,0.00024999,2]
[400324964,1767375031934,-500.0,0.00024999,2]
[400324966,1767375031944,-500.0,0.00024999,2]
[400324967,1767375031953,-500.0,0.00024999,2]
[400324969,1767375031963,-500.0,0.00024999,2]
[400324971,1767375031973,-500.0,0.00024999,2]
[400324973,1767375031982,-500.0,0.00024999,2]
[400324974,1767375031992,-155.66509406,0.00024999,2]
[400324976,1767375032002,-500.0,0.00024999,2]
[400324977,1767375032011,-500.0,0.00024999,2]
[400324979,1767375032021,-500.0,0.00024999,2]
[400324981,1767375032031,-500.0,0.00024999,2]
[400324982,1767375032041,-500.0,0.00024999,2]
[400324984,1767375032050,-500.0,0.00024999,2]
[400324986,1767375032060,-500.0,0.00024999,2]
[400324988,1767375032070,-500.0,0.00024999,2]
[400324989,1767375032079,-500.0,0.00024999,2]
[400324991,1767375032092,-500.0,0.00024999,2]
[400324993,1767375032102,-500.0,0.00024999,2]
[400324994,1767375032112,-500.0,0.00024999,2]
[400324996,1767375032121,-500.0,0.00024999,2]
[400324998,1767375032130,-14756.51126426,0.00025,2]
[400325000,1767375032142,-18341.1777839,0.00025,2]
[400325027,1767375037627,-252.12537855,0.00024999,2]
[400325028,1767375037637,-346.29879572,0.00024999,2]
[400325029,1767375037649,-153.70120428,0.00024999,2]
[400325030,1767375037662,-247.9549473,0.00024999,2]
[400325031,1767375037673,-5.64913462,0.00024999,2]
[400325032,1767375037686,-195.10727042,0.00024999,2]
[400325033,1767375037702,-500.0,0.00024999,2]
[400325034,1767375037712,-403.12486089,0.00024999,2]
[400325035,1767375037723,-1078.55874901,0.00025,2]
[400325036,1767375037736,-2285.54382959,0.00025,2]
[400325037,1767375037747,-3354.35483825,0.00025,2]
[400325038,1767375037763,-1450.52206108,0.00025,2]
[400325039,1767375037774,-469.13392746,0.00025,2]
[400325044,1767375039596,-735.15065074,0.00025,2]
[400325045,1767375039608,-316.16760014,0.00025,2]
[400325046,1767375039619,-860.509009,0.00025,2]
[400325047,1767375039811,-9067.80647665,0.00025,2]
[400325064,1767375043820,-202335.77029885,0.00025,2]
[400325065,1767375043830,-202.82,0.00025322,2]
[400325066,1767375043839,-800.0,0.00025423,9]
[400325067,1767375043848,-800.0,0.00025423,9]
[400325068,1767375043857,-800.0,0.00025423,9]
[400325069,1767375043867,-800.0,0.00025423,9]
[400325070,1767375043876,-800.0,0.00025423,9]
[400325071,1767375043886,-800.0,0.00025423,9]
[400325072,1767375043895,-800.0,0.00025423,9]
[400325073,1767375043904,-800.0,0.00025423,9]
[400325074,1767375043914,-572.12,0.00025423,2]
[400325075,1767375043923,-150.99,0.00025423,2]
[400325076,1767375043932,-502.0,0.0002564,7]
[400325078,1767375043942,-398.56,0.00026676,2]
[400325079,1767375043952,-502.0,0.00026848,8]
[400325080,1767375043961,-3240.0,0.00027468,2]
[400325081,1767375043972,-156.22688056,0.00027956,2]
[400325082,1767375043981,-29378.22,0.00028056,2]
[400325083,1767375043991,-502.0,0.00028056,10]
[400325084,1767375044000,-647.18,0.00028976,2]
[400325085,1767375044010,-502.0,0.00029264,11]
[400325086,1767375044019,-150.0,0.000295,14]
[400325087,1767375044029,-647.18,0.00030346,2]
[400325088,1767375044038,-156.22688056,0.00030432,2]
[400325089,1767375044048,-502.0,0.00030472,12]
[400325090,1767375044058,-502.0,0.0003168,13]
[400325091,1767375044077,-502.0,0.00032888,14]
[400325092,1767375044086,-156.22688056,0.00032909,2]
[400325093,1767375044096,-398.56,0.00033165,2]
[400325094,1767375044106,-502.0,0.00034096,15]
[400325095,1767375044116,-166.66,0.00034224,30]
[400325096,1767375044126,-2067.49876347,0.00034495,2]
[400325097,1767375044136,-7306.19874598,0.00034585,3]
[400325098,1767375044146,-5753.14,0.00034595,2]
[400325099,1767375044156,-480.47,0.00034595,2]
[400325100,1767375044166,-166.66,0.00034944,30]
[400325101,1767375044175,-860.402,0.00035189,41]
[400325102,1767375044184,-500.0,0.00035299,120]
[400325103,1767375044195,-502.0,0.00035304,17]
[400325104,1767375044204,-156.22688056,0.00035385,2]
[400325105,1767375044214,-2067.49876347,0.00035419,2]
[400325106,1767375044223,-166.66,0.00035665,30]
[400325107,1767375044232,-999.0,0.00036056,3]
[400325108,1767375044242,-2067.49876347,0.00036344,2]
[400325109,1767375044251,-1000.0,0.00036352,2]
[400325110,1767375044261,-166.66,0.00036385,30]
[400325111,1767375044270,-502.0,0.00036512,18]
[400325112,1767375044279,-7306.19874598,0.00036513,4]
[400325113,1767375044289,-13197.06,0.00036523,2]
[400325114,1767375044298,-11188.86,0.00036523,120]
[400325115,1767375044307,-2000.0,0.000366,2]
[400325116,1767375044317,-325.7,0.00036915,2]
[400325117,1767375044327,-166.66,0.00037106,30]
[400325118,1767375044337,-2067.49876347,0.00037268,2]
[400325119,1767375044346,-300.0,0.00037329,2]
[400325120,1767375044356,-1073.71,0.00037394,120]
[400325121,1767375044366,-208.23,0.00037546,2]
[400325122,1767375044375,-502.0,0.0003772,19]
[400325123,1767375044385,-166.66,0.00037826,30]
[400325124,1767375044395,-156.22688056,0.00037861,2]
[400325125,1767375044404,-500.0,0.00037878,2]
[400325126,1767375044414,-2067.49876347,0.00038192,2]
[400325127,1767375044424,-300.0,0.00038607,2]
[400325128,1767375044434,-300.0,0.00038607,2]
[400325129,1767375044449,-325.7,0.0003876,2]